bitfinex/quotes_ETHUSD_20241108
["timestamp","ask_amount","ask_price","bid_price","bid_amount"]
[1731043373735,0.7813,2911.0,2909.9,3.30981595]
[1731043373974,0.7813,2911.0,2910.0,0.7747]
[1731043374134,0.7813,2911.0,2910.0,0.84342262]
[1731043375239,3.7813,2911.0,2910.0,0.84342262]
[1731043376263,3.7813,2911.0,2910.0,0.7747]
[1731043377061,3.7813,2911.0,2910.0,0.84342101]
[1731043377926,3.7813,2911.0,2910.0,0.7747]
[1731043377927,0.55,2910.9,2910.0,0.7747]
[1731043379068,0.55,2910.9,2909.7,0.7731]
[1731043379274,0.55,2910.7,2909.7,0.7731]
[1731043380466,3.55,2910.5,2909.4,0.7731]
[1731043380670,0.55,2910.3,2909.4,0.7731]
[1731043381040,0.8233,2910.2,2909.1,0.7877]
[1731043381364,12.69,2910.1,2909.1,0.7877]
[1731043381872,12.14,2910.1,2909.3,3.30981595]
[1731043382040,12.14,2910.1,2909.4,0.7877]
[1731043383053,0.55,2910.0,2909.4,0.7877]
[1731043384069,0.55,2910.0,2909.1,0.7614]
[1731043384269,0.7549,2909.9,2909.1,0.7614]
[1731043384472,0.7549,2909.9,2908.8,0.7614]
[1731043384473,0.55,2909.8,2908.8,0.7614]
[1731043384626,0.55,2909.6,2908.8,0.7614]
[1731043384827,12.69,2909.6,2908.8,0.7614]
[1731043385565,12.14,2909.6,2908.8,0.7614]
[1731043386476,12.14,2909.6,2908.8,1.1685216]
[1731043387265,12.14,2909.6,2908.8,1.23727257]
[1731043387467,12.14,2909.6,2908.8,1.1685216]
[1731043389940,0.55,2909.7,2908.8,1.1685216]
[1731043390220,0.55,2909.7,2908.8,0.7614]
[1731043393200,0.7657,2909.6,2908.8,0.7614]
[1731043393391,0.55,2909.5,2908.8,0.7614]
[1731043394424,0.55,2909.5,2908.5,0.7704]
[1731043394624,0.55,2909.3,2908.5,0.7704]
[1731043396428,12.14,2909.4,2908.5,1.25006411]
[1731043396613,12.14,2909.4,2908.5,1.18130366]
[1731043396824,12.14,2909.4,2908.5,0.7704]
[1731043398848,12.14,2909.5,2908.5,0.7704]
[1731043399195,0.55,2909.4,2908.5,0.7704]
[1731043399642,0.8251,2909.3,2908.5,0.7704]
[1731043401811,0.55,2909.2,2908.4,0.0288206]
[1731043402036,0.55,2909.0,2908.4,0.0288206]
[1731043402237,0.55,2908.8,2908.4,0.0288206]
[1731043402963,3.55,2908.8,2908.4,0.0288206]
[1731043404113,12.14,2908.9,2908.4,0.0288206]
[1731043404629,0.55,2908.8,2908.4,0.0288206]
[1731043407714,0.55,2908.9,2908.4,0.0288206]
[1731043409023,12.69,2908.9,2908.4,0.0288206]
[1731043413437,0.55,2908.9,2908.4,0.0288206]
[1731043415434,12.14,2909.0,2908.5,0.809]
[1731043415632,12.14,2909.5,2908.6,0.809]
[1731043416033,12.14,2909.5,2908.7,3.30981595]
[1731043416255,12.14,2909.5,2908.8,0.809]
[1731043416967,12.14,2909.5,2909.1,0.809]
[1731043417168,12.8907,2910.2,2909.4,0.809]
[1731043417329,12.14,2910.1,2909.4,0.809]
[1731043419833,12.14,2910.1,2909.6,3.30981595]
[1731043420032,12.14,2910.1,2909.7,0.8087]
[1731043420265,12.14,2910.7,2909.7,0.8087]
[1731043421575,0.55,2910.6,2909.7,0.8087]
[1731043425061,0.55,2910.6,2909.2,0.8167]
[1731043425263,0.55,2910.6,2909.3,0.8167]
[1731043425484,12.69,2910.6,2909.3,0.8167]
[1731043425796,12.14,2910.6,2910.2,3.30981595]
[1731043426087,12.14,2911.1,2910.4,0.8167]
[1731043426295,12.14,2911.1,2910.6,0.8167]
[1731043426793,0.7515,2911.6,2910.6,0.8167]
[1731043427611,12.14,2911.7,2910.8,0.7871]
[1731043429053,12.14,2911.7,2910.9,0.89580231]
[1731043429280,12.14,2911.7,2911.1,0.8271]
[1731043430871,0.55,2912.3,2911.2,0.8763927]
[1731043431202,12.14,2912.4,2911.2,0.8763927]
[1731043431407,12.14,2912.5,2911.5,0.8077]
[1731043431698,12.14,2912.5,2911.7,0.8077]
[1731043433195,0.55,2912.4,2911.7,0.8077]
[1731043434011,12.14,2912.5,2911.7,0.8077]
[1731043434215,12.14,2913.0,2911.8,0.8253776]
[1731043434505,12.14,2912.9,2911.8,0.7567]
[1731043435698,3.0,2912.8,2911.8,0.7567]
[1731043436008,12.14,2912.9,2912.0,3.30981595]
[1731043436173,12.14,2912.9,2912.1,0.8251]
[1731043440190,3.7854,2913.2,2912.1,0.8251]
[1731043440191,0.55,2913.1,2912.1,0.8251]
[1731043442780,0.8051,2913.0,2912.1,0.8251]
[1731043443111,0.8051,2913.0,2911.5,0.8027]
[1731043443112,0.55,2912.9,2911.5,0.8027]
[1731043446123,3.55,2912.7,2911.5,0.8027]
[1731043447232,3.55,2912.7,2911.8,0.7964]
[1731043447526,0.55,2912.7,2911.8,0.7964]
[1731043449631,12.14,2912.8,2912.1,0.7527]
[1731043449924,12.14,2912.8,2912.1,0.82137027]
[1731043450696,12.14,2912.8,2912.3,3.30981595]
[1731043451011,12.14,2913.6,2912.4,0.8238]
[1731043451219,12.14,2913.6,2912.3,3.72317755]
[1731043451220,12.14,2913.7,2912.6,3.30981595]
[1731043451400,12.14,2913.7,2912.7,0.8238]
[1731043452925,12.14,2913.7,2912.8,0.06865469]
[1731043453128,12.14,2913.7,2912.9,3.30981595]
[1731043453307,12.14,2913.7,2913.0,0.7894]
[1731043453511,3.39058338,2913.9,2913.0,0.7894]
[1731043454339,3.39058338,2913.9,2913.1,0.06865164]
[1731043454546,3.39058338,2913.9,2913.2,0.7894]
[1731043454899,0.55,2913.8,2913.2,0.7894]
[1731043455444,3.39058338,2913.9,2913.2,0.7894]
[1731043456676,3.39058338,2913.9,2913.3,0.89124974]
[1731043456799,3.39058338,2913.9,2913.5,0.8226]
[1731043457611,12.14,2914.0,2913.5,0.8226]
[1731043457939,0.55,2914.4,2913.5,0.8226]
[1731043458150,0.7797,2914.8,2913.6,0.8226]
[1731043458151,12.14,2914.7,2913.6,0.8226]
[1731043458334,3.0,2914.6,2913.7,0.8226]
[1731043459122,12.14,2914.7,2913.8,3.30981595]
[1731043459443,12.14,2914.7,2913.9,0.8226]
[1731043460447,12.14,2914.7,2914.1,0.7696]
[1731043460652,12.14,2915.0,2914.1,0.7696]
[1731043462855,0.55,2915.1,2914.2,0.7702]
[1731043463051,15.14,2915.2,2914.3,0.83882319]
[1731043463256,12.14,2915.2,2914.5,0.7702]
[1731043463417,12.14,2915.2,2914.5,0.83881476]
[1731043464658,3.0,2915.6,2914.5,0.7702]
[1731043464856,3.0,2915.6,2914.6,0.7639]
[1731043466958,1.318,2915.5,2914.6,0.7639]
[1731043467862,3.55,2915.3,2914.6,0.7639]
[1731043468358,3.55,2915.3,2913.9,0.8285]
[1731043468653,3.55,2915.3,2913.8,3.30981595]
[1731043468654,3.55,2915.1,2914.1,0.8285]
[1731043470266,0.7831,2915.0,2914.1,0.8285]
[1731043470757,3.55,2915.1,2914.1,0.8285]
[1731043471065,12.14,2915.7,2914.8,0.8285]
[1731043471222,12.14,2915.7,2914.1,0.01]
[1731043471223,12.14,2916.0,2915.1,0.8285]
[1731043474955,0.55,2915.7,2915.1,0.8285]
[1731043475733,12.69,2915.7,2915.1,0.8285]
[1731043476582,0.55,2915.5,2914.5,0.7994]
[1731043476780,0.55,2915.3,2914.5,0.7994]
[1731043477367,0.55,2915.1,2914.3,0.7994]
[1731043477578,0.55,2914.9,2914.3,0.7994]
[1731043486599,0.55,2914.7,2913.2,0.8182]
[1731043486809,3.0,2914.6,2913.2,0.8182]
[1731043487095,0.55,2914.5,2913.2,0.8182]
[1731043487658,0.55,2914.5,2912.9,0.7795]
[1731043487659,0.55,2914.3,2912.9,0.7795]
[1731043487885,3.55,2914.1,2912.9,0.7795]
[1731043488089,0.55,2913.9,2912.9,0.7795]
[1731043492687,3.55,2913.9,2912.9,0.7795]
[1731043493203,0.55,2913.7,2912.9,0.7795]
[1731043493591,3.55,2913.5,2912.9,0.7795]
[1731043493905,15.69,2913.5,2912.9,0.7795]
[1731043494714,12.14,2913.5,2913.2,0.8301]
[1731043494865,12.14,2913.5,2913.4,0.8301]
[1731043499411,3.55,2914.2,2913.4,0.8301]
[1731043499625,15.69,2914.2,2913.4,0.8301]
[1731043500517,0.55,2914.0,2913.4,0.8301]
[1731043500720,0.55,2914.0,2913.0,0.7606]
[1731043501023,0.55,2914.1,2913.2,0.7606]
[1731043501378,15.14,2914.2,2913.2,0.7606]
[1731043503106,12.14,2914.6,2913.4,3.30981595]
[1731043503309,12.14,2914.6,2913.6,0.753]
[1731043504006,12.14,2914.6,2913.8,0.753]
[1731043504584,3.0,2914.5,2913.8,0.753]
[1731043505488,12.14,2914.6,2913.8,0.753]
[1731043506834,0.55,2914.5,2913.8,0.753]
[1731043507424,3.55,2914.5,2913.8,0.753]
[1731043508402,15.69,2914.5,2913.8,0.753]
[1731043509278,16.4686,2914.5,2913.8,0.753]
[1731043509416,16.4686,2914.5,2913.5,0.7734]
[1731043513409,0.7888,2914.2,2912.6,0.7732]
[1731043513605,3.55,2914.0,2912.6,0.7732]
[1731043513801,0.55,2913.8,2912.6,0.7732]
[1731043514006,3.55,2913.6,2912.6,0.7732]
[1731043514230,0.55,2913.4,2912.6,0.7732]
[1731043515218,12.14,2913.5,2912.6,0.7732]
[1731043515604,12.14,2913.5,2912.5,3.30981595]
[1731043515605,12.14,2913.5,2912.8,0.8038]
[1731043517348,3.0,2913.7,2912.8,0.8038]
[1731043517649,0.55,2913.6,2912.8,0.8038]
[1731043519547,0.7838,2913.5,2912.8,0.8038]
[1731043519706,0.55,2913.4,2912.8,0.8038]
[1731043520110,0.55,2913.4,2912.0,0.7557]
[1731043520450,3.55,2913.2,2912.0,1.1622516]
[1731043521105,3.55,2913.2,2912.0,0.7557]
[1731043524844,3.0,2913.0,2912.0,0.7557]
[1731043525055,3.55,2913.0,2912.0,0.7557]
[1731043526125,0.55,2912.8,2912.0,0.7557]
[1731043526329,0.7729,2912.5,2911.3,0.8096]
[1731043526549,3.0,2912.3,2911.4,0.41194159]
[1731043526911,0.55,2912.2,2911.4,0.41194159]
[1731043527310,0.55,2912.2,2911.3,0.8096]
[1731043528044,3.0,2912.3,2911.3,0.8096]
[1731043528346,12.14,2912.4,2911.3,0.8096]
[1731043529728,4.3372,2912.3,2911.3,0.8096]
[1731043529933,1.3372,2912.3,2911.3,0.8096]
[1731043532310,0.55,2912.3,2911.3,0.8096]
[1731043533151,0.55,2912.3,2911.4,0.8276]
[1731043535257,0.7566,2912.2,2911.4,0.8276]
[1731043535425,0.55,2912.1,2911.4,0.8276]
[1731043536440,3.7566,2912.2,2911.4,0.8276]
[1731043536441,0.55,2911.9,2911.4,0.8276]
[1731043536640,12.69,2911.9,2911.4,0.8276]
[1731043537369,0.55,2911.7,2911.4,0.8276]
[1731043537568,0.55,2911.7,2910.3,0.8294]
[1731043537774,0.55,2911.5,2910.5,0.8294]
[1731043537975,0.5379,2911.5,2910.5,0.8294]
[1731043538472,3.5379,2911.5,2910.5,0.8294]
[1731043538635,15.6779,2911.5,2910.5,0.8294]
[1731043540962,0.55,2911.3,2910.5,0.8294]
[1731043541472,0.55,2911.4,2910.5,0.8294]
[1731043541836,15.14,2911.5,2910.5,0.8294]
[1731043542750,0.55,2911.4,2910.5,0.8294]
[1731043543554,0.7673,2911.3,2910.5,0.8294]
[1731043543766,0.55,2911.2,2910.5,0.8294]
[1731043543964,0.55,2911.0,2910.5,0.8294]
[1731043544170,12.14,2910.9,2910.5,0.8294]
[1731043544354,0.55,2910.8,2910.5,0.8294]
[1731043544871,0.7817,2912.6,2910.7,3.30981595]
[1731043545069,3.39058338,2912.5,2911.5,3.30981595]
[1731043545280,0.3721073,2913.4,2911.9,3.30981595]
[1731043545281,0.7817,2913.3,2911.9,3.30981595]
[1731043545445,0.7817,2913.3,2912.0,0.8266]
[1731043546991,0.55,2913.2,2912.0,0.8266]
[1731043550399,3.56,2913.0,2912.0,0.8266]
[1731043550611,0.01,2912.7,2911.4,0.7889]
[1731043550777,3.55,2912.5,2911.4,0.7889]
[1731043550980,0.55,2912.3,2911.4,0.7889]
[1731043554510,0.7972,2912.4,2911.4,0.7889]
[1731043554511,0.55,2912.4,2911.4,0.7889]
[1731043554705,0.55,2912.5,2911.4,0.7889]
[1731043555778,0.55,2912.3,2911.4,0.7889]
[1731043555990,3.55,2912.3,2911.4,0.7889]
[1731043557772,11.85010832,2912.4,2911.4,0.7889]
[1731043557977,11.85010832,2912.4,2911.7,0.8205]
[1731043558182,11.85010832,2912.4,2912.1,0.8205]
[1731043558381,11.85010832,2913.0,2912.1,0.8205]
[1731043558594,11.85010832,2912.9,2912.1,0.8205]
[1731043559993,0.55,2912.8,2912.1,0.8205]
[1731043561735,12.40010832,2912.8,2912.1,0.8205]
[1731043565807,12.40010832,2912.8,2912.3,3.30981595]
[1731043566045,12.39958237,2912.8,2912.3,3.30981595]
[1731043567704,3.0,2912.9,2912.3,3.30981595]
[1731043568105,0.55,2912.8,2912.3,3.30981595]
[1731043568914,11.85010832,2913.0,2912.6,3.30981595]
[1731043569110,11.85010832,2913.0,2912.9,3.30981595]
[1731043569457,11.85010832,2913.4,2912.9,3.30981595]
[1731043570344,0.55,2913.3,2912.9,3.30981595]
[1731043570651,3.55,2913.3,2912.9,3.30981595]
[1731043570810,3.55,2913.3,2912.7,0.7549]
[1731043571007,4.3039,2913.3,2912.2,3.30981595]
[1731043571248,3.55,2913.1,2912.2,3.30981595]
[1731043571417,3.55,2913.1,2911.3,3.0]
[1731043571418,3.55,2913.1,2911.3,3.01]
[1731043571623,0.55,2912.9,2912.3,3.30981595]
[1731043571936,12.40010832,2912.9,2912.3,3.30981595]
[1731043572445,0.55,2912.7,2911.4,0.301]
[1731043572619,12.40010832,2912.7,2912.0,3.30981595]
[1731043573321,12.40010832,2912.7,2911.6,3.30981595]
[1731043574013,12.40010832,2912.7,2911.7,0.2007]
[1731043576520,0.55,2912.5,2911.7,0.2007]
[1731043577635,3.55,2912.5,2911.7,0.2007]
[1731043578756,3.55,2912.5,2911.4,0.2007]
[1731043578987,0.7615,2912.2,2911.4,0.2007]
[1731043579265,0.55,2912.1,2911.4,0.2007]
[1731043579596,0.55,2911.9,2910.8,0.2007]
[1731043579723,3.55,2911.7,2910.8,0.2007]
[1731043584539,3.0,2911.7,2911.1,3.30981595]
[1731043584764,3.0,2911.7,2911.2,0.3309816]
[1731043584967,3.0,2911.7,2910.8,3.51051595]
[1731043586443,11.85010832,2911.8,2910.8,3.51051595]
[1731043589796,0.55,2911.7,2910.8,0.2007]
[1731043590010,0.55,2911.7,2910.5,3.30981595]
[1731043590011,0.55,2911.5,2910.5,3.51051595]
[1731043591462,12.40010832,2911.5,2910.5,3.51051595]
[1731043593774,11.85010832,2911.5,2910.5,3.86156755]
[1731043597002,11.85010832,2911.5,2910.9,0.2007]
[1731043597367,0.7875,2911.6,2910.9,0.2007]
[1731043607041,0.7875,2911.6,2910.6,0.2007]
[1731043607042,0.55,2911.5,2910.6,0.2007]
[1731043607243,0.8066,2911.6,2910.6,0.2007]
[1731043607444,0.55,2911.5,2910.6,0.2007]
[1731043608754,0.55,2911.5,2910.8,3.30981595]
[1731043609247,0.55,2911.5,2910.6,0.2007]
[1731043610544,0.8265,2911.4,2910.6,0.2007]
[1731043611641,12.40010832,2911.3,2910.5,3.30981595]
[1731043611827,0.55,2911.1,2910.3,0.2007]
[1731043612221,3.55,2911.1,2910.3,0.2007]
[1731043612833,0.55,2911.1,2910.5,3.30981595]
[1731043613350,0.55,2911.1,2910.3,0.2007]
[1731043614307,0.55,2911.1,2910.3,0.5517516]
[1731043615255,12.40010832,2911.1,2910.3,0.2007]
[1731043620556,11.85010832,2911.1,2910.5,3.30981595]
[1731043620919,0.7549,2911.2,2910.5,3.30981595]
[1731043623981,11.85010832,2911.4,2910.6,0.2007]
[1731043625987,11.85010832,2911.4,2910.6,0.26940659]
[1731043626183,11.85010832,2911.4,2910.6,0.2007]
[1731043626384,11.85010832,2911.4,2910.7,0.41975631]
[1731043627076,0.7791,2911.5,2910.7,0.41975631]
[1731043627271,0.7791,2911.5,2910.7,0.3510516]
[1731043628067,12.62920832,2911.8,2911.1,3.30981595]
[1731043628264,0.7791,2911.8,2911.1,3.30981595]
[1731043629191,0.7791,2911.8,2910.9,0.2007]
[1731043630206,11.85010832,2912.1,2911.1,3.30981595]
[1731043630419,11.85010832,2912.1,2911.5,0.2007]
[1731043631718,3.0,2912.5,2911.7,3.30981595]
[1731043631880,14.85010832,2912.5,2911.7,3.30981595]
[1731043632287,11.85010832,2912.5,2912.0,3.30981595]
[1731043632520,11.85010832,2912.5,2912.1,0.2007]
[1731043633022,0.8155,2912.9,2912.1,0.2007]
[1731043633233,0.8155,2912.9,2912.2,0.06866879]
[1731043633451,0.01,2913.1,2911.4,0.2007]
[1731043633452,0.7819,2912.7,2911.4,0.2007]
[1731043634008,0.7819,2912.6,2911.4,0.2007]
[1731043634413,0.55,2912.5,2911.4,0.2007]
[1731043634608,0.7819,2912.6,2911.4,0.2007]
[1731043634609,0.55,2912.3,2911.4,0.2007]
[1731043634854,0.55,2912.1,2910.9,0.2007]
[1731043635151,12.40010832,2912.1,2911.0,0.3510516]
[1731043636211,12.40010832,2912.1,2911.2,0.2007]
[1731043638160,11.85010832,2912.1,2911.5,0.2007]
[1731043638365,11.85010832,2912.6,2911.6,0.2007]
[1731043639422,11.85010832,2912.6,2911.8,0.2007]
[1731043639825,0.7571,2913.0,2911.8,0.2007]
[1731043640021,11.85010832,2913.0,2912.1,0.2007]
[1731043640248,11.85010832,2913.0,2912.3,0.2007]
[1731043641569,11.85010832,2913.0,2912.3,3.51051595]
[1731043641775,11.85010832,2913.0,2912.4,0.3510516]
[1731043641981,3.7571,2913.3,2912.4,0.3510516]
[1731043642264,3.7571,2913.3,2912.3,3.51051595]
[1731043642476,0.55,2913.2,2912.3,3.51051595]
[1731043643273,0.55,2913.2,2911.5,0.3610516]
[1731043643274,0.55,2913.0,2911.8,0.2007]
[1731043643460,11.85010832,2912.9,2911.8,0.2007]
[1731043643632,0.7881,2912.7,2911.8,0.2007]
[1731043646050,0.7881,2912.7,2911.8,0.5517516]
[1731043646464,12.65360832,2912.9,2911.9,0.2007]
[1731043647567,11.85010832,2912.9,2912.1,0.2007]
[1731043647871,11.85010832,2913.0,2912.1,0.2007]
[1731043648170,11.85010832,2913.0,2912.1,0.5517516]
[1731043649275,11.85010832,2913.0,2912.1,0.2007]
[1731043650769,11.85010832,2913.0,2912.2,0.2007]
[1731043653571,11.85010832,2913.2,2912.2,0.2007]
[1731043653783,0.55,2913.1,2912.2,0.2007]
[1731043653947,0.55,2912.9,2912.2,0.2007]
[1731043654271,0.55,2912.9,2911.5,0.2007]
[1731043654442,0.55,2912.9,2911.6,0.3510516]
[1731043654869,0.55,2912.9,2911.7,0.2007]
[1731043655579,0.55,2912.8,2911.7,0.2007]
[1731043659683,3.0,2912.6,2911.7,0.2007]
[1731043661602,11.85010832,2912.7,2911.7,0.2007]
[1731043670784,0.55,2912.4,2911.7,0.2007]
[1731043670999,12.40010832,2912.4,2911.7,0.2007]
[1731043676472,0.55,2912.2,2910.8,3.30981595]
[1731043676699,11.85010832,2912.1,2911.0,0.2007]
[1731043676906,0.55,2911.8,2911.0,0.2007]
[1731043680311,3.55,2911.6,2911.0,0.2007]
[1731043680505,11.85010832,2911.5,2911.0,0.2007]
[1731043681407,0.55,2911.4,2911.0,0.2007]
[1731043682074,13.19880832,2911.4,2910.1,0.2007]
[1731043682275,13.19880832,2911.4,2910.3,0.2007]
[1731043684207,12.40010832,2911.4,2910.4,0.2007]
[1731043684516,12.40010832,2911.4,2910.5,0.2007]
[1731043684872,11.85010832,2911.4,2910.5,0.2007]
[1731043685072,11.85010832,2911.4,2910.7,0.2007]
[1731043685272,0.8101,2912.0,2910.7,0.2007]
[1731043685273,3.0,2911.7,2910.8,0.2007]
[1731043686380,11.85010832,2911.8,2910.8,0.2007]
[1731043686983,11.85010832,2911.8,2910.9,0.2007]
[1731043688507,11.85010832,2911.8,2910.9,3.30981595]
[1731043688684,11.85010832,2911.8,2911.0,0.06870116]
[1731043688885,11.85010832,2911.8,2911.1,0.33785171]
[1731043689092,0.30412777,2912.6,2911.3,0.2007]
[1731043689093,11.85010832,2912.5,2911.3,0.2007]
[1731043689296,11.85010832,2912.4,2911.5,0.2007]
[1731043690324,11.85010832,2912.4,2911.8,3.30981595]
[1731043690475,11.85010832,2912.4,2911.9,0.2007]
[1731043690676,3.0,2912.5,2911.9,0.2007]
[1731043691172,11.85010832,2912.6,2912.0,0.2007]
[1731043694409,11.85010832,2913.0,2912.2,0.2007]
[1731043694631,8.1106,2913.4,2912.2,0.2007]
[1731043694632,3.0,2913.2,2912.2,0.2007]
[1731043695399,3.0,2913.5,2912.2,0.2007]
[1731043695608,3.0,2913.5,2912.4,0.2007]
[1731043696477,3.0,2913.5,2912.5,0.2007]
[1731043700110,3.0,2913.5,2912.5,0.26936175]
[1731043700313,0.55,2913.5,2912.5,0.26936155]
[1731043700531,0.55,2913.5,2912.6,0.2007]
[1731043700694,3.39058338,2913.6,2912.7,0.2007]
[1731043700901,15.2406917,2913.6,2912.7,0.2007]
[1731043702725,11.85010832,2913.6,2912.7,0.2007]
[1731043703933,11.85010832,2913.5,2912.7,0.2007]
[1731043704833,3.55,2913.4,2912.7,0.2007]
[1731043704995,0.55,2913.2,2912.7,0.2007]
[1731043706233,11.85010832,2913.5,2912.7,0.2007]
[1731043708293,0.55,2913.4,2912.7,0.2007]
[1731043708500,1.3703,2913.4,2912.7,0.2007]
[1731043709516,4.3703,2913.4,2912.7,0.2007]
[1731043709912,0.55,2913.2,2912.7,0.2007]
[1731043710137,3.55,2913.2,2912.7,0.2007]
[1731043716037,11.85010832,2913.1,2912.7,0.2007]
[1731043716614,11.85010832,2913.1,2911.8,0.2007]
[1731043716815,11.85010832,2913.0,2912.0,0.2007]
[1731043721820,11.85010832,2913.1,2912.0,0.2007]
[1731043727185,0.55,2913.0,2912.0,0.2007]
[1731043727716,12.40010832,2913.0,2912.0,0.2007]
[1731043733630,11.85010832,2912.9,2912.0,0.2007]
[1731043733831,11.85010832,2912.9,2912.1,0.2007]
[1731043737062,11.85010832,2912.9,2912.2,0.2007]
[1731043737260,11.85010832,2912.9,2912.2,0.06866925]
[1731043737465,11.85010832,2912.9,2912.3,0.2007]
[1731043739686,11.85010832,2913.4,2912.3,0.2007]
[1731043739860,3.55,2913.3,2912.3,0.2007]
[1731043740169,3.55,2913.3,2912.4,0.2007]
[1731043740364,11.8489594,2913.2,2912.4,0.2007]
[1731043743194,3.8041,2913.1,2912.4,0.2007]
[1731043743398,0.55,2913.0,2912.4,0.2007]
[1731043745484,12.3989594,2913.0,2912.4,0.2007]
[1731043747479,0.55,2912.8,2912.4,0.2007]
[1731043747695,0.55,2912.8,2911.7,0.2007]
[1731043748007,0.55,2912.6,2911.7,0.2007]
[1731043748508,0.55,2912.6,2911.7,0.40929653]
[1731043748815,4.3765,2912.6,2911.7,0.2007]
[1731043751473,0.55,2912.4,2911.7,0.2007]
[1731043752197,11.8489594,2912.5,2911.7,0.2007]
[1731043757514,12.3989594,2912.4,2911.7,0.2007]
[1731043757682,0.55,2912.2,2911.7,0.2007]
[1731043757885,3.0,2912.1,2911.7,0.2007]
[1731043761425,11.8489594,2912.2,2911.7,0.2007]
[1731043761587,11.8489594,2912.2,2911.8,0.2007]
[1731043763304,3.0,2912.6,2911.8,0.2007]
[1731043766118,11.8489594,2912.7,2911.8,0.2007]
[1731043769199,11.8489594,2912.6,2911.8,0.2007]
[1731043769413,11.8489594,2912.6,2911.8,0.17275248]
[1731043769743,11.8489594,2912.6,2911.9,0.2007]
[1731043774392,11.8489594,2912.6,2911.9,1.72752477]
[1731043774588,11.8489594,2912.9,2912.2,1.52682477]
[1731043774809,11.8489594,2913.2,2912.3,0.2007]
[1731043775326,11.8489594,2913.2,2912.4,0.2007]
[1731043776032,3.55,2913.1,2912.4,0.2007]
[1731043777030,11.8489594,2913.2,2911.9,0.2007]
[1731043777031,5.07682477,2912.9,2911.9,0.2007]
[1731043778126,11.8489594,2912.8,2911.9,0.2007]
[1731043778430,3.55,2912.7,2911.9,0.2007]
[1731043780008,3.55,2912.7,2911.9,0.37345248]
[1731043782503,3.0,2912.7,2911.9,0.37345248]
[1731043782907,3.0,2912.7,2911.9,0.17275248]
[1731043783108,3.0,2912.7,2912.0,0.2007]
[1731043784249,14.8489594,2912.7,2912.0,0.2007]
[1731043784763,0.55,2912.6,2912.0,0.2007]
[1731043786943,14.8489594,2912.7,2912.0,0.2007]
[1731043789839,17.00620259,2912.7,2912.0,0.2007]
[1731043790040,11.8489594,2912.6,2912.0,0.2007]
[1731043793882,0.55,2912.5,2912.0,0.2007]
[1731043795687,0.55,2912.5,2912.0,0.2007]
[1731043795873,11.8489594,2912.4,2912.0,0.2007]
[1731043801007,3.55,2912.3,2911.3,0.2007]
[1731043801208,5.70815242,2912.3,2911.3,0.2007]
[1731043801715,0.55,2912.1,2911.3,0.2007]
[1731043802097,4.50517719,2912.2,2911.3,0.2007]
[1731043802098,0.8202,2912.2,2911.3,0.2007]
[1731043802430,3.0,2912.1,2911.3,0.2007]
[1731043802632,0.55,2912.2,2911.3,0.2007]
[1731043802841,3.0,2912.3,2911.3,0.2007]
[1731043803906,5.15801722,2912.3,2911.3,0.2007]
[1731043804403,3.0,2912.3,2911.3,0.2007]
[1731043804612,5.15801722,2912.3,2911.3,0.2007]
[1731043804809,3.0,2912.3,2911.3,0.2007]
[1731043805124,3.0,2912.3,2911.5,0.2007]
[1731043806933,0.55,2912.2,2911.5,0.2007]
[1731043816755,3.0,2912.3,2911.5,0.2007]
[1731043816961,11.8489594,2912.4,2911.7,0.2007]
[1731043818480,11.8489594,2912.4,2911.6,1.52682477]
[1731043818481,11.8489594,2912.4,2912.3,0.2007]
[1731043818683,11.8489594,2912.4,2912.3,0.37345248]
[1731043820385,2.51645817,2913.8,2912.3,0.37345248]
[1731043820386,11.8489594,2913.1,2912.4,0.2007]
[1731043820535,11.8489594,2913.0,2912.9,1.72752477]
[1731043821744,11.8489594,2913.0,2912.9,0.2007]
[1731043825304,11.8489594,2913.0,2912.9,0.37345248]
[1731043825877,0.55,2914.0,2913.0,0.2007]
[1731043826233,0.30892657,2914.5,2913.0,1.52682477]
[1731043826234,11.8489594,2913.9,2913.0,1.52682477]
[1731043826405,11.8489594,2913.9,2913.1,0.2007]
[1731043827614,11.8489594,2913.9,2913.2,1.72752477]
[1731043827821,11.8489594,2913.9,2913.4,0.2007]
[1731043829891,13.37578417,2913.9,2912.7,0.2007]
[1731043831426,11.8489594,2913.8,2912.7,0.2007]
[1731043833042,0.7773,2913.7,2912.7,0.2007]
[1731043834169,11.8489594,2913.8,2912.9,0.2007]
[1731043834357,11.8489594,2913.8,2912.9,0.37345248]
[1731043834544,11.8489594,2913.8,2913.0,0.2007]
[1731043836545,11.8489594,2913.7,2913.0,0.2007]
[1731043838178,11.8489594,2913.7,2913.2,1.52682477]
[1731043838345,11.8489594,2913.7,2913.3,0.2007]
[1731043838546,11.8489594,2913.7,2913.5,0.2007]
[1731043840290,0.7529,2914.1,2913.5,0.2007]
[1731043840461,0.7529,2914.1,2912.9,0.2007]
[1731043840796,0.55,2913.9,2912.9,0.2007]
[1731043841945,0.55,2914.0,2912.9,0.2007]
[1731043844751,0.55,2914.0,2913.0,0.2007]
[1731043845493,0.7647,2914.4,2913.0,0.2007]
[1731043846282,3.0,2914.2,2913.0,0.2007]
[1731043846481,3.0,2914.2,2913.0,3.30618807]
[1731043846682,11.8489594,2914.3,2913.2,0.2007]